bitfinex/quotes_ETHUSD_20240717
["timestamp","ask_amount","ask_price","bid_price","bid_amount"]
[1721190721548,2.8724,3481.4,3481.3,0.1509315]
[1721190722602,2.87224,3481.7,3481.3,0.1509315]
[1721190722844,2.87224,3481.6,3481.3,0.19775076]
[1721190723064,2.87224,3481.6,3481.3,0.1509315]
[1721190723065,3.44667,3481.6,3481.3,0.1509315]
[1721190723567,3.44667,3481.6,3481.4,0.04667708]
[1721190723744,2.87224,3481.6,3481.4,0.04667708]
[1721190726452,2.3069,3481.9,3481.4,0.04667708]
[1721190726453,2.87232,3481.5,3481.4,0.04667708]
[1721190726810,2.8724,3481.4,3481.3,0.1509315]
[1721190727148,2.8724,3481.4,3481.3,0.1976453]
[1721190729726,6.319273,3481.4,3481.3,0.1976453]
[1721190730120,11.794173,3481.4,3481.3,0.1976453]
[1721190731957,11.794173,3481.4,3481.3,0.1509315]
[1721190736366,9.319273,3481.4,3481.3,0.1509315]
[1721190737265,5.8724,3481.4,3481.3,0.1509315]
[1721190737633,5.8724,3481.4,3481.3,0.19786368]
[1721190738035,5.8724,3481.4,3481.3,0.1509315]
[1721190739235,5.8724,3481.4,3481.3,0.19786368]
[1721190739436,5.8724,3481.4,3481.3,0.1509315]
[1721190739662,7.080194,3481.4,3481.3,0.1509315]
[1721190741586,9.952594,3481.4,3481.3,0.1509315]
[1721190741941,7.080194,3481.4,3481.3,0.1509315]
[1721190742142,5.8724,3481.4,3481.3,0.1509315]
[1721190743278,3.0,3481.4,3481.3,0.1509315]
[1721190743583,5.8724,3481.4,3481.3,0.1509315]
[1721190744793,3.0,3481.4,3481.3,0.1509315]
[1721190744939,2.87208,3481.8,3481.3,2.6115315]
[1721190745141,2.87218,3481.7,3481.3,2.6115315]
[1721190745380,2.87218,3481.7,3481.4,0.04693301]
[1721190745938,2.87206,3481.9,3481.4,0.04693301]
[1721190746254,2.87209,3481.8,3481.4,0.04693301]
[1721190749483,2.87194,3482.0,3481.4,0.04693301]
[1721190749641,5.87202,3481.9,3481.4,0.04693301]
[1721190750479,3.0,3481.9,3481.4,0.04693301]
[1721190750778,3.0,3482.0,3481.4,0.88728246]
[1721190750997,5.87193,3482.0,3481.4,0.88728246]
[1721190752593,5.87193,3482.0,3481.4,0.04693301]
[1721190758061,2.87201,3481.9,3481.4,0.04693301]
[1721190758260,3.0,3481.8,3481.4,0.04693301]
[1721190758877,4.49981003,3481.8,3481.4,0.04693301]
[1721190759061,4.49981003,3481.8,3481.3,0.1509315]
[1721190759062,2.8724,3481.4,3481.3,0.1509315]
[1721190759457,2.8724,3481.4,3481.3,0.19758056]
[1721190760655,6.469253,3481.4,3481.3,0.1509315]
[1721190760853,8.963153,3481.4,3481.3,0.1509315]
[1721190761202,13.46441452,3481.4,3481.3,0.1509315]
[1721190761352,11.963153,3481.4,3481.3,0.1509315]
[1721190761789,13.46465656,3481.4,3481.3,0.1509315]
[1721190764359,13.46444305,3481.4,3481.3,0.1509315]
[1721190767594,13.46433289,3481.4,3481.3,0.1509315]
[1721190769308,14.835553,3481.4,3481.3,0.1509315]
[1721190770226,11.963153,3481.4,3481.3,0.1509315]
[1721190770436,13.46448483,3481.4,3481.3,0.1509315]
[1721190770756,13.46448399,3481.4,3481.3,0.1509315]
[1721190770903,11.963153,3481.4,3481.3,0.1509315]
[1721190772228,14.835553,3481.4,3481.3,0.1509315]
[1721190772643,16.63715019,3481.4,3481.3,0.1509315]
[1721190773007,14.835553,3481.4,3481.3,0.1509315]
[1721190773754,16.63668508,3481.4,3481.3,0.1509315]
[1721190774176,16.63656222,3481.4,3481.3,0.1509315]
[1721190774326,11.27026222,3481.4,3481.3,0.1509315]
[1721190774650,8.7448,3481.4,3481.3,0.1509315]
[1721190776122,10.24562945,3481.4,3481.3,0.1509315]
[1721190776776,8.7448,3481.4,3481.3,0.1509315]
[1721190780249,11.6172,3481.4,3481.3,0.1509315]
[1721190780674,8.7448,3481.4,3481.3,0.1509315]
[1721190780886,10.41336456,3481.4,3481.3,0.1509315]
[1721190781202,11.42436456,3481.4,3481.3,0.1509315]
[1721190781814,8.7448,3481.4,3481.3,0.1509315]
[1721190782109,10.24488076,3481.4,3481.3,0.1509315]
[1721190782505,5.8724,3481.4,3481.3,0.1509315]
[1721190782671,7.37246665,3481.4,3481.3,0.1509315]
[1721190782873,5.8724,3481.4,3481.3,0.1509315]
[1721190783091,8.7448,3481.4,3481.3,0.1509315]
[1721190783410,13.24698666,3481.4,3481.3,0.1509315]
[1721190783610,16.11938666,3481.4,3481.3,0.1509315]
[1721190785005,17.91946664,3481.4,3481.3,0.1509315]
[1721190785203,16.11938666,3481.4,3481.3,0.1509315]
[1721190786914,13.24698666,3481.4,3481.3,0.1509315]
[1721190787101,9.7558,3481.4,3481.3,0.1509315]
[1721190791301,11.25531605,3481.4,3481.3,0.1509315]
[1721190791902,8.7448,3481.4,3481.3,0.1509315]
[1721190792097,10.24424619,3481.4,3481.3,0.1509315]
[1721190792815,8.7448,3481.4,3481.3,0.1509315]
[1721190793310,10.24528814,3481.4,3481.3,0.1509315]
[1721190793717,7.37288814,3481.4,3481.3,0.1509315]
[1721190793922,5.8724,3481.4,3481.3,0.1509315]
[1721190794098,7.37288814,3481.4,3481.3,0.1509315]
[1721190795219,7.3731815,3481.4,3481.3,0.1509315]
[1721190795424,4.5007815,3481.4,3481.3,0.1509315]
[1721190795736,4.5008686,3481.5,3481.3,0.19762186]
[1721190795935,7.3731986,3481.5,3481.3,0.1509315]
[1721190797141,1.5008686,3481.4,3481.3,0.1509315]
[1721190797518,8.00662084,3481.4,3481.3,0.1509315]
[1721190797722,7.51675224,3481.4,3481.3,0.1509315]
[1721190797914,10.51675224,3481.4,3481.3,0.1509315]
[1721190800263,8.7448,3481.4,3481.3,0.1509315]
[1721190800418,5.8724,3481.4,3481.3,0.1509315]
[1721190800747,7.37389857,3481.4,3481.3,0.1509315]
[1721190800968,5.8724,3481.4,3481.3,0.19612001]
[1721190801172,5.8724,3481.4,3481.3,0.1509315]
[1721190803863,8.7448,3481.4,3481.3,0.1509315]
[1721190804054,9.90054053,3481.4,3481.3,0.1509315]
[1721190804769,10.91154053,3481.4,3481.3,0.1509315]
[1721190805868,15.58642226,3481.4,3481.3,0.1509315]
[1721190807280,17.98122226,3481.4,3481.3,0.1509315]
[1721190807440,19.05114053,3481.4,3481.3,0.1509315]
[1721190807880,21.996981,3481.4,3481.3,1.5e-06]
[1721190808180,27.897381,3481.4,3481.3,1.5e-06]
[1721190808384,24.95154053,3481.4,3481.3,1.5e-06]
[1721190811082,25.40212495,3481.4,3481.3,1.5e-06]
[1721190815295,27.87860857,3481.4,3481.3,1.5e-06]
[1721190817358,25.40212495,3481.4,3481.3,1.5e-06]
[1721190817566,27.87832157,3481.4,3481.3,1.5e-06]
[1721190819460,2.87381,3479.7,3479.6,2.2974]
[1721190819670,5.74762,3479.7,3479.6,2.2974]
[1721190819984,6.75862,3479.7,3479.6,2.2974]
[1721190820458,2.87433,3479.1,3478.9,2.2974]
[1721190820839,2.87433,3479.1,3479.0,0.04301151]
[1721190822829,2.87433,3479.1,3479.0,2.38751151]
[1721190824174,5.74869,3479.1,3479.0,2.38751151]
[1721190824572,3.0,3479.8,3479.0,2.3445]
[1721190824748,2.87423,3479.2,3479.0,2.3445]
[1721190825081,2.87423,3479.2,3479.1,0.04297475]
[1721190825288,2.8743,3479.1,3479.0,2.3445]
[1721190826086,2.8743,3479.1,3478.4,2.4581]
[1721190826087,2.87448,3478.9,3478.4,2.4581]
[1721190826437,2.87448,3478.9,3478.4,3.092522]
[1721190829192,2.87441,3479.0,3478.5,2.3017]
[1721190829851,2.87428,3479.2,3478.5,2.3017]
[1721190830047,5.87391,3479.6,3478.9,2.4015]
[1721190830285,2.87391,3479.6,3478.9,2.4015]
[1721190830456,3.0,3479.5,3479.1,2.4015]
[1721190831897,5.87399,3479.5,3479.1,2.4015]
[1721190832067,6.88499,3479.5,3479.1,2.4015]
[1721190833090,2.87406,3479.4,3479.1,2.4015]
[1721190833373,3.0,3479.3,3479.1,2.4015]
[1721190833762,2.87422,3479.2,3479.1,2.4015]
[1721190834715,2.87422,3479.2,3478.5,2.3377]
[1721190834894,2.87446,3479.0,3478.5,3.0235062]
[1721190836010,5.74851,3479.2,3478.5,3.0235062]
[1721190836183,2.87422,3479.2,3478.6,2.3595]
[1721190836390,3.88563,3478.7,3478.6,2.3595]
[1721190836605,2.87463,3478.7,3478.6,2.3595]
[1721190837609,2.87431,3479.1,3478.6,2.3595]
[1721190837797,2.87439,3479.0,3478.6,2.3595]
[1721190838713,2.87449,3478.9,3478.6,2.3595]
[1721190840807,2.87463,3478.7,3478.6,2.3595]
[1721190841013,2.87463,3478.7,3478.2,2.3002]
[1721190841014,2.87474,3478.6,3478.2,2.3002]
[1721190841217,2.87463,3478.7,3478.2,2.3002]
[1721190841218,2.8748,3478.5,3478.2,2.3002]
[1721190841716,2.8749,3478.4,3477.9,2.3002]
[1721190842006,2.87496,3478.3,3477.9,2.3002]
[1721190842910,2.87505,3478.2,3477.9,2.3002]
[1721190843889,2.87505,3478.2,3477.8,0.1509315]
[1721190843890,2.87474,3478.6,3478.0,0.24511315]
[1721190844102,2.87441,3479.0,3478.4,2.2804]
[1721190844299,2.87404,3479.5,3478.8,2.3183]
[1721190844300,2.87397,3479.5,3478.8,2.3183]
[1721190844539,2.87412,3479.4,3478.9,1.011]
[1721190844872,2.87399,3479.5,3478.9,1.011]
[1721190845414,2.87367,3479.9,3479.1,1.011]
[1721190845621,2.87367,3479.9,3479.2,1.011]
[1721190845800,1.011,3479.9,3479.0,2.2903]
[1721190846398,2.8739,3479.6,3479.0,2.2903]
[1721190846889,2.87404,3479.5,3479.0,2.2903]
[1721190847416,2.87414,3479.3,3478.6,3.3013]
[1721190847619,2.87414,3479.3,3478.7,0.33013]
[1721190848024,2.87414,3479.3,3478.8,1.011]
[1721190848187,2.87397,3479.5,3478.7,0.33013]
[1721190848383,2.87397,3479.5,3478.8,2.4265]
[1721190848658,2.87382,3479.7,3478.8,2.4265]
[1721190848925,3.161282,3479.6,3478.8,2.4265]
[1721190849224,2.87415,3479.3,3478.8,2.4265]
[1721190849383,2.87422,3479.2,3478.8,2.4265]
[1721190849785,2.87454,3478.9,3478.3,2.4265]
[1721190850097,2.87476,3478.6,3478.0,7.39]
[1721190850428,0.287454,3478.9,3477.9,2.4265]
[1721190850429,2.87497,3478.3,3477.9,2.4265]
[1721190851224,2.875,3478.3,3477.9,2.4265]
[1721190852623,2.87482,3478.5,3477.9,2.4265]
[1721190852788,2.8749,3478.4,3477.9,2.4265]
[1721190854156,2.87482,3478.5,3478.0,0.54528915]
[1721190854624,2.87464,3478.7,3478.0,0.54528915]
[1721190855715,2.87473,3478.6,3478.0,0.54528915]
[1721190855921,2.87449,3478.9,3478.0,0.54528915]
[1721190856101,3.0,3478.8,3478.2,2.87504]
[1721190857845,3.0,3478.8,3478.2,3.74724292]
[1721190858837,2.87416,3479.3,3478.5,2.87475]
[1721190859993,2.87416,3479.3,3478.6,2.87471]
[1721190860636,2.87398,3479.5,3478.7,2.87461]
[1721190860933,3.0,3479.4,3478.9,2.25]
[1721190861137,5.87389,3479.6,3478.9,2.25]
[1721190861347,2.87397,3479.5,3478.9,2.25]
[1721190861497,3.0,3479.4,3478.9,2.25]
[1721190861698,2.87423,3479.2,3478.0,0.54528915]
[1721190861898,2.87436,3479.1,3478.3,2.87496]
[1721190862107,2.87436,3479.1,3478.4,2.87485]
[1721190863136,3.0,3479.4,3478.7,2.87463]
[1721190863337,5.87391,3479.6,3478.8,2.87449]
[1721190864836,2.87397,3479.5,3478.9,0.04046046]
[1721190865043,3.0,3479.4,3478.9,0.04046046]
[1721190865353,3.0,3479.4,3478.9,2.91491046]
[1721190865497,3.0,3479.6,3478.9,2.91491046]
[1721190865701,3.0,3479.6,3479.0,2.3367]
[1721190865924,4.37037712,3480.0,3479.1,2.87428]
[1721190866124,2.87356,3480.0,3479.1,2.91466693]
[1721190866342,2.87356,3480.0,3479.3,2.87413]
[1721190866736,2.87356,3480.0,3479.4,0.04024829]
[1721190866737,3.33550483,3480.0,3479.4,0.04024829]
[1721190867102,2.87366,3479.9,3479.4,0.04024829]
[1721190868322,2.87366,3479.9,3479.1,2.79428]
[1721190868623,2.87366,3479.9,3479.5,0.04019111]
[1721190868828,2.87373,3479.8,3479.1,2.79428]
[1721190869304,2.87373,3479.8,3479.2,0.04028777]
[1721190869706,2.87398,3479.5,3479.2,0.04028777]
[1721190869905,2.87386,3479.7,3478.9,2.87443]
[1721190870117,2.87367,3479.9,3479.3,0.04025214]
[1721190870318,2.87367,3479.9,3479.2,2.87419]
[1721190870522,2.87367,3479.9,3479.4,0.04012345]
[1721190870739,2.87367,3479.9,3479.3,2.38746021]
[1721190870938,2.87367,3479.9,3479.5,0.04007195]
[1721190871101,2.87367,3479.9,3479.4,0.04010871]
[1721190871300,2.87367,3479.9,3479.3,2.3473]
[1721190871560,2.87367,3479.9,3479.5,0.04007195]
[1721190871703,2.87367,3479.9,3479.4,0.04010871]
[1721190871901,2.87367,3479.9,3479.3,2.3473]
[1721190872151,2.87367,3479.9,3479.5,0.04007195]
[1721190872352,2.87367,3479.9,3479.4,0.04010871]
[1721190872509,2.87367,3479.9,3479.6,0.0400352]
[1721190872839,2.87367,3479.9,3479.7,0.03999845]
[1721190873155,2.87367,3479.9,3479.3,2.3473]
[1721190873440,2.87367,3479.9,3479.8,0.0399617]
[1721190874006,2.87367,3479.9,3479.3,2.3473]
[1721190874244,2.87367,3479.9,3479.8,0.0399617]
[1721190874443,3.448385,3479.9,3479.3,2.3473]
[1721190874746,3.448385,3479.9,3479.4,0.04010871]
[1721190877112,0.574715,3479.9,3479.4,0.04010871]
[1721190877358,2.87367,3479.9,3479.4,0.04010871]
[1721190879013,5.74739,3479.9,3479.4,0.04010871]
[1721190879253,2.87367,3479.9,3479.4,0.04010871]
[1721190880432,2.87373,3479.8,3479.4,0.04010871]
[1721190880834,2.87381,3479.7,3479.4,0.04010871]
[1721190881033,2.87411,3479.4,3478.7,5.30583]
[1721190881355,2.87411,3479.4,3478.8,0.04018801]
[1721190883832,2.87389,3479.6,3478.8,0.04018801]
[1721190884653,2.87398,3479.5,3478.8,0.04018801]
[1721190884963,2.87398,3479.5,3478.8,2.91473801]
[1721190886533,2.87407,3479.4,3478.8,0.04018801]
[1721190888269,2.3906,3480.0,3479.1,2.87423]
[1721190888462,5.3906,3480.0,3479.1,2.87423]
[1721190888800,5.3906,3480.0,3479.2,0.0400059]
[1721190888801,2.3906,3480.0,3479.2,0.0400059]
[1721190888968,0.53906,3479.9,3479.2,0.0400059]
[1721190889172,2.87378,3479.8,3479.2,0.0400059]
[1721190889531,2.87378,3479.8,3479.2,2.9142259]
[1721190890344,2.87378,3479.8,3479.2,0.0400059]
[1721190890548,2.87378,3479.8,3478.9,2.3262]
[1721190890549,2.87385,3479.7,3478.9,5.20059]
[1721190890781,3.736996,3479.7,3479.3,0.0399612]
[1721190890987,3.736996,3479.7,3479.0,2.87437]
[1721190891150,3.736996,3479.7,3479.4,0.03992445]
[1721190891485,3.736996,3479.7,3479.0,2.87437]
[1721190891685,3.736996,3479.7,3479.5,0.03988769]
[1721190891989,3.736996,3479.7,3479.0,2.87437]
[1721190891990,3.5888706,3479.6,3479.0,2.87437]
[1721190892287,3.5888706,3479.6,3478.9,2.3262]
[1721190892643,3.5888706,3479.6,3478.9,5.20067]
[1721190894162,2.8739,3479.6,3479.0,2.87438]
[1721190894965,2.8739,3479.6,3479.1,0.04002451]
[1721190895178,2.8739,3479.6,3479.0,2.87438]
[1721190895377,2.8739,3479.6,3479.2,0.03999796]
[1721190895592,2.8739,3479.6,3479.1,0.04003472]
[1721190896001,2.8739,3479.6,3479.0,2.87438]
[1721190896205,2.8739,3479.6,3479.2,0.0399923]
[1721190896498,2.8739,3479.6,3479.1,0.04002906]
[1721190896795,2.8739,3479.6,3479.3,0.03995554]
[1721190896998,2.8739,3479.6,3479.2,0.0399923]
[1721190897496,2.8739,3479.6,3479.3,0.03995554]
[1721190897859,2.8739,3479.6,3479.4,0.03991878]
[1721190898281,2.8739,3479.6,3479.4,1.012]
[1721190898477,2.8739,3479.6,3479.5,0.03988203]
[1721190899161,2.8739,3479.6,3479.4,1.012]
[1721190899362,2.8739,3479.6,3479.5,0.03988203]
[1721190899662,2.8739,3479.6,3479.4,1.012]
[1721190899991,2.8739,3479.6,3479.5,0.03988203]
[1721190900496,2.8739,3479.6,3479.4,1.012]
[1721190900804,2.8739,3479.6,3479.5,0.03988203]
[1721190901156,2.8739,3479.6,3479.4,1.012]
[1721190901357,2.8739,3479.6,3479.5,0.03988203]
[1721190901558,2.87399,3479.5,3479.2,1.012]
[1721190901995,1.49687937,3480.2,3479.4,1.012]
[1721190902171,2.87319,3480.5,3480.1,1.012]
[1721190902371,1.79625524,3481.0,3479.7,2.87374]
[1721190902372,0.43700694,3480.4,3479.8,2.4477]
[1721190902610,2.87307,3480.6,3480.3,1.012]
[1721190902900,7.32,3481.1,3480.5,1.012]
[1721190902901,2.87274,3481.0,3480.5,1.012]
[1721190903067,2.87282,3480.9,3480.8,1.012]
[1721190903270,1.49687937,3481.2,3480.8,1.012]
[1721190903271,2.87275,3481.0,3480.8,1.012]
[1721190903496,0.43696294,3480.9,3480.8,1.012]
[1721190903969,0.43696294,3480.9,3480.5,1.012]
[1721190904164,2.87261,3481.2,3480.5,3.3577]
[1721190904364,2.87261,3481.2,3480.5,2.3457]
[1721190904563,2.87257,3481.2,3480.5,5.21884]
[1721190906375,2.87249,3481.3,3480.6,2.87306]
[1721190906585,2.87257,3481.2,3480.5,2.3457]
[1721190906782,2.87257,3481.2,3480.5,5.21884]
[1721190909331,5.2959,3481.3,3480.5,2.3457]
[1721190909485,2.87266,3481.1,3480.4,2.87322]
[1721190909818,3.89415171,3481.1,3480.2,2.3424]
[1721190910032,5.74614,3480.6,3480.5,0.03925832]
[1721190910186,2.87307,3480.6,3479.5,5.21634]
[1721190910521,2.8734,3480.2,3479.6,0.03957539]
[1721190910836,2.87348,3480.1,3479.6,0.03957539]
[1721190911260,2.2959,3480.7,3479.6,0.03957539]
[1721190911261,2.87381,3479.7,3479.6,0.03957539]
[1721190911521,2.87381,3479.7,3478.8,2.87454]
[1721190911522,2.87398,3479.5,3478.8,2.87454]
[1721190911723,2.87398,3479.5,3478.9,0.03988145]
[1721190912719,2.87406,3479.4,3478.9,0.03988145]
[1721190912926,2.87419,3479.3,3478.6,2.87471]
[1721190913225,2.87419,3479.3,3479.0,0.03992407]
[1721190913430,2.87419,3479.3,3478.6,3.449668]
[1721190913631,2.87419,3479.3,3479.1,0.03988731]
[1721190913930,2.87419,3479.3,3479.2,0.03985055]
[1721190914285,2.87419,3479.3,3479.2,0.03992322]
[1721190914493,2.87392,3479.6,3478.6,2.87471]
[1721190914724,2.87392,3479.6,3478.7,0.574958]
[1721190914908,5.34927,3479.9,3478.7,3.48970433]
[1721190915237,2.87388,3479.7,3478.9,2.8744]
[1721190915463,2.87367,3479.9,3479.0,2.87436]
[1721190915734,2.8735,3480.1,3479.2,2.87416]
[1721190915735,3.0,3479.8,3479.2,2.87416]
[1721190915891,2.87316,3480.5,3479.4,2.87405]
[1721190916093,2.873,3480.7,3479.8,2.87366]
[1721190916389,1.02149171,3481.1,3480.0,2.87348]
[1721190916390,2.8729,3480.8,3480.0,2.87348]
[1721190916792,2.8729,3480.8,3480.1,0.03956821]
[1721190917143,2.8729,3480.8,3480.1,0.86103403]
[1721190917490,3.0,3480.7,3480.1,0.86103403]
[1721190917991,5.87299,3480.7,3480.1,0.03956821]
[1721190918186,5.87299,3480.7,3479.8,5.30168]
[1721190918187,5.87299,3480.7,3479.8,2.87368]
[1721190918405,5.87299,3480.7,3480.2,0.03945435]
[1721190918612,5.87299,3480.7,3479.8,2.87368]
[1721190918825,5.87299,3480.7,3480.3,0.03941761]
[1721190919023,5.87299,3480.7,3479.9,2.87363]
[1721190919334,5.87299,3480.7,3479.7,2.87378]
[1721190919335,2.87329,3480.4,3479.6,1.7]
[1721190919489,2.87329,3480.4,3479.7,0.03963807]
[1721190919684,2.87333,3480.3,3479.7,0.03963807]
[1721190922691,2.87315,3480.5,3479.7,0.03963807]
[1721190923024,2.87324,3480.4,3479.7,0.03963807]
[1721190923222,2.87324,3480.4,3479.8,0.46135281]
[1721190923436,2.8728,3481.0,3480.1,2.87345]
[1721190923733,11.10614239,3481.3,3480.2,0.03945321]
[1721190923734,2.87282,3480.9,3480.2,0.03945321]
[1721190924545,9.6132,3481.3,3480.2,0.03945321]
[1721190924546,2.8729,3480.8,3480.2,0.03945321]
[1721190925113,2.8729,3480.8,3480.2,0.78810053]
[1721190926346,2.8729,3480.8,3480.2,0.03945321]
[1721190928804,2.87265,3481.1,3480.3,2.87329]
[1721190929312,2.87265,3481.1,3480.4,0.03922666]
[1721190929535,5.87235,3481.5,3480.5,2.3936]
[1721190929742,5.87242,3481.4,3480.6,3.15549586]
[1721190930846,3.0,3481.4,3480.8,2.87289]
[1721190931009,3.0,3481.5,3480.8,2.87289]
[1721190931344,3.0,3481.5,3480.9,0.03904301]
[1721190931647,5.87233,3481.5,3480.9,0.09365827]
[1721190931962,6.746787,3481.5,3480.9,0.09365827]
[1721190932909,2.87243,3481.4,3480.9,0.09365827]
[1721190933247,3.0,3481.3,3480.8,2.87289]
[1721190933462,3.0,3481.3,3481.0,0.09362427]
[1721190933750,2.8721,3481.8,3481.1,0.09358598]
[1721190933941,2.87216,3481.7,3481.1,0.09358598]
[1721190935108,2.8721,3481.8,3481.1,2.96622598]
[1721190935660,2.87199,3481.9,3481.2,2.87256]
[1721190935815,3.0,3481.8,3481.2,2.87256]
[1721190936018,3.0,3481.8,3481.3,0.09349921]
[1721190936543,3.0,3481.8,3481.4,0.09346092]
[1721190936742,3.0,3481.8,3481.2,2.87256]
[1721190937042,3.0,3481.8,3481.3,0.09349921]
[1721190937264,3.0,3481.8,3481.2,2.87256]
[1721190937413,3.0,3481.8,3481.4,0.09346092]
[1721190937608,2.87167,3482.3,3481.4,2.8724]
[1721190937921,2.87191,3482.0,3481.5,0.09342264]
[1721190938356,2.87167,3482.3,3481.5,3.02316493]
[1721190938527,2.87175,3482.2,3481.5,2.96572264]
[1721190938960,2.87164,3482.4,3481.6,2.87223]
[1721190939260,2.87167,3482.3,3481.6,2.87223]
[1721190939567,2.87175,3482.2,3481.7,0.09323842]
[1721190939765,2.87167,3482.3,3481.7,0.09323842]
[1721190942660,2.87178,3482.2,3481.7,0.09323842]
[1721190943455,2.87163,3482.4,3481.7,0.09323842]
[1721190943673,2.428,3482.3,3481.7,2.96538842]
[1721190944325,2.428,3482.3,3481.7,3.54915926]
[1721190944868,3.0,3482.6,3481.7,3.54915926]
[1721190944869,3.0,3482.4,3481.9,2.87199]
[1721190945179,3.0,3482.6,3482.0,0.09301935]
[1721190945969,5.87141,3482.6,3482.0,0.09301935]
[1721190946866,3.0,3482.6,3482.0,2.96487935]
[1721190947067,3.0,3482.8,3482.0,2.96487935]
[1721190947265,2.428,3482.6,3482.0,2.96487935]
[1721190947471,5.428,3482.6,3482.0,2.96487935]
[1721190947656,5.428,3482.6,3482.0,2.71487935]
[1721190947857,5.428,3482.6,3482.1,0.0898725]
[1721190949173,2.87156,3482.5,3482.1,0.0898725]
[1721190949371,2.87156,3482.5,3481.8,2.3733]
[1721190949372,3.0,3482.4,3481.8,5.24537]
[1721190949668,3.0,3482.4,3482.2,0.08981838]
[1721190949882,3.0,3482.4,3481.8,5.24537]
[1721190950046,3.0,3482.4,3482.3,0.08977785]
[1721190950572,3.0,3482.4,3481.8,5.24537]
[1721190950776,3.0,3482.4,3482.3,0.08971328]
[1721190950971,3.0,3482.4,3481.8,5.24537]
[1721190951289,5.87158,3482.4,3482.3,0.08971328]
[1721190951507,5.87158,3482.4,3481.8,2.3733]
[1721190951708,7.06304091,3482.4,3482.3,0.08971215]
[1721190951912,2.87183,3482.1,3481.5,2.87231]
[1721190952218,2.87196,3482.0,3481.6,0.08998004]
[1721190952513,5.30016,3481.7,3481.0,2.4104]
[1721190952871,5.30016,3481.7,3481.0,5.28308]
[1721190953180,2.428,3481.7,3481.1,2.87265]
[1721190954528,5.30016,3481.7,3481.0,2.4104]
[1721190955006,2.87243,3481.4,3481.0,2.4104]
[1721190955372,2.87243,3481.4,3481.1,0.09017146]
[1721190956180,2.8723,3481.6,3481.1,0.09017146]
[1721190956381,2.87238,3481.5,3481.1,0.09017146]
[1721190956769,2.87241,3481.4,3481.1,0.09017146]
[1721190957671,5.30057,3481.2,3481.1,0.09017146]
[1721190958105,2.87266,3481.1,3480.5,2.3307]
[1721190958680,2.87266,3481.1,3480.4,2.87322]
[1721190959884,2.428,3481.2,3480.5,2.87312]
[1721190960064,2.4334,3481.6,3480.7,1.7]
[1721190960065,2.428,3481.6,3480.7,1.7]
[1721190960271,2.87237,3481.5,3480.7,5.268854]
[1721190960494,2.428,3481.6,3480.7,5.268854]
[1721190960495,2.8724,3481.4,3480.7,5.268854]
[1721190961596,2.8724,3481.4,3480.8,2.87289]
[1721190961932,2.428,3481.6,3481.1,2.87264]
[1721190962206,2.428,3481.6,3480.9,2.87275]
[1721190962407,5.3003,3481.6,3480.9,2.87275]
[1721190962777,2.428,3481.6,3480.9,2.87275]
[1721190963206,2.428,3481.6,3481.1,2.87265]
[1721190963422,2.8721,3481.8,3481.1,2.87265]
[1721190963714,2.8721,3481.8,3481.1,3.44719]
[1721190965079,2.8721,3481.8,3481.1,2.87265]
[1721190965318,2.428,3481.6,3480.7,3.568824]
[1721190965540,2.428,3480.9,3480.3,2.87325]
[1721190965821,2.428,3480.9,3480.4,2.87322]
[1721190966531,2.87291,3480.8,3480.1,2.87347]
[1721190969420,3.0,3481.0,3480.4,2.87318]
[1721190969628,2.8728,3481.0,3480.3,2.87331]
[1721190969833,2.8728,3481.0,3480.5,0.09055758]
[1721190970034,2.8728,3481.0,3480.4,0.09059589]
[1721190970337,2.8728,3481.0,3480.6,0.09051928]
[1721190970507,2.8728,3481.0,3480.5,0.09055758]
[1721190970690,2.8728,3481.0,3480.7,0.09048098]
[1721190970885,2.8728,3481.0,3480.6,0.09051928]
[1721190971091,2.8728,3481.0,3480.8,0.09044268]
[1721190971291,2.8728,3481.0,3480.7,0.09048098]
[1721190971603,2.8728,3481.0,3480.8,0.09044268]
[1721190971819,2.8728,3481.0,3480.3,2.87331]
[1721190972151,2.8728,3481.0,3480.3,3.447988]
[1721190972303,2.87266,3481.1,3480.4,2.96380589]
[1721190972636,5.87273,3481.0,3480.4,0.09059589]
[1721190973385,2.428,3480.9,3480.4,0.09059589]
[1721190974117,5.30082,3480.9,3480.1,2.87344]
[1721190974304,6.418175,3480.9,3480.5,0.09066638]
[1721190974502,6.418175,3480.9,3480.2,2.87338]
[1721190974722,6.418175,3480.9,3480.6,0.09062921]
[1721190974906,6.418175,3480.9,3480.2,2.87338]
[1721190975109,5.30082,3480.9,3480.7,0.09059205]
[1721190975448,5.30082,3480.9,3480.8,0.09055375]
[1721190975449,2.428,3480.9,3480.8,0.09055375]
[1721190975737,2.428,3480.9,3480.3,2.8733]
[1721190976115,2.428,3480.9,3480.4,0.09070808]
[1721190979537,2.428,3480.9,3480.5,2.4125]
[1721190979841,2.428,3480.9,3480.6,0.09063148]
[1721190980399,2.428,3481.7,3480.8,2.87289]
[1721190980798,2.428,3481.7,3480.9,0.09051659]
[1721190981233,2.87232,3481.5,3480.9,0.09051659]
[1721190981648,5.2109,3482.4,3481.2,2.8725]
[1721190981948,5.2109,3482.4,3481.4,2.87239]
[1721190981949,2.87184,3482.1,3481.4,2.87239]
[1721190982108,2.87184,3482.1,3481.3,0.55332435]
[1721190982109,2.428,3482.0,3481.3,0.55332435]
[1721190982311,2.428,3482.0,3481.5,0.09025286]
[1721190982508,2.428,3482.0,3481.4,0.09029114]
[1721190982761,3.245164,3482.0,3481.6,0.09021458]
[1721190982917,2.87208,3481.8,3481.5,0.09025286]
[1721190983252,2.87208,3481.8,3481.6,0.09018172]
[1721190983455,2.87208,3481.8,3481.2,2.87257]
[1721190983626,2.87208,3481.8,3481.7,0.09006071]
[1721190983817,2.87208,3481.8,3481.2,2.87257]
[1721190984026,2.87208,3481.8,3481.7,0.09006071]